Cogmind - Beta 16 @@@ ROGUE MODE // 2025.11.08 @ 15:36:28 Player: shapeshifter Result: Self-destructed Performance ------------- Evolutions (2) 1000 Regions Visited (5) 1000 Robots Destroyed (6) 30 Value Destroyed (52) 52 Prototype IDs (23) 460 Alien Tech Used (0) 0 Bonus (300) 300 TOTAL SCORE: 2842 Bonus ------- Aligned with FarCom 300 Cogmind --------- Core Integrity 437/550 Matter 240/300 Energy 125/125 System Corruption 0% Temperature Cool (0) Movement Flying (42) Location -8/Materials Parts ------- > --- POWER (1) -------- Light Ion Engine > --- PROPULSION (5) --- Flight Unit Flying Fortress v7 > --- UTILITY (3) ------ Cooling System Advanced Visual Processing Unit Hacking Suite > --- WEAPON (2) ------- Greatsword > --- INVENTORY (5) ---- Flight Unit Cooling System Greatsword Peak State ------------ > --- POWER ------------ Light Ion Engine > --- PROPULSION ------- Flight Unit Flying Fortress v7 > --- UTILITY ---------- Cooling System Advanced Visual Processing Unit Hacking Suite > --- WEAPON ----------- Greatsword > --- INVENTORY -------- Flight Unit Cooling System Greatsword [Rating: 51] Favorites ----------- Power Light Ion Engine Engine Light Ion Engine Propulsion Flight Unit Treads Light Treads Flight Unit Flight Unit Utility Cooling System Device Cooling System Processor Advanced Visual Processing Unit Hackware Hacking Suite Weapon Small Laser Energy Gun Small Laser Slashing Weapon Greatsword Build | -11 -10 -10 -10 -9 -8 ------- Run | Yrd Mat Min Exi Min Mat Slots Evolved 4 | . . . . . 4 Power . | . . . . . . Propulsion 3 | . . . . . 3 Utility 1 | . . . . . 1 Weapon . | . . . . . . Parts Attached 13 | 2 2 5 . . 4 Power 1 | . . 1 . . . Engine 1 | . . 1 . . . Core . | . . . . . . Reactor . | . . . . . . Propulsion 6 | 2 . 3 . . 1 Treads 2 | 2 . . . . . Leg . | . . . . . . Wheel . | . . . . . . Hover . | . . . . . . Flight 4 | . . 3 . . 1 Utility 3 | . . 1 . . 2 Device 1 | . . 1 . . . Storage . | . . . . . . Processor 1 | . . . . . 1 Hackware 1 | . . . . . 1 Protection . | . . . . . . Artifact . | . . . . . . Weapon 3 | . 2 . . . 1 Energy Gun 2 | . 2 . . . . Energy Cannon . | . . . . . . Ballistic Gun . | . . . . . . Ballistic Cannon . | . . . . . . Launcher . | . . . . . . Special Weapon . | . . . . . . Impact Weapon . | . . . . . . Slashing Weapon 1 | . . . . . 1 Piercing Weapon . | . . . . . . Special Melee Weapon . | . . . . . . Unidentified Prototypes . | . . . . . . Parts Lost 1 | . . 1 . . . Power . | . . . . . . Propulsion 1 | . . 1 . . . Utility . | . . . . . . Weapon . | . . . . . . Highest Loss Streak 1 | . . 1 . . . To Critical Strikes . | . . . . . . Average Backups 3 | 1 4 4 3 2 2 Power . | . 2 1 . . . Propulsion . | . . . 1 1 1 Utility 1 | . . 2 1 1 1 Weapon . | 1 1 . . . . Tool/Special . | . . . . . . Unused Backups 6 | . . . 4 . 2 Power 1 | . . . 1 . . Propulsion 2 | . . . 2 . . Utility 2 | . . . 1 . 1 Weapon 1 | . . . . . 1 Tool/Special . | . . . . . . Average Slot Usage (%) 62 | . 37 58 85 85 58 Engine 6 | . . 1 14 14 9 Treads 8 | . 28 15 . . . Flight 16 | . . 11 28 28 18 Device 6 | . . 1 14 14 9 Processor 2 | . . . . . 8 Energy Gun 19 | . 9 28 28 28 9 Slashing Weapon 1 | . . . . . 4 Peak Build Rating 51 | 2 4 7 10 10 51 Average Rating 12 | 1 2 4 8 10 30 On Entrance 5 | . 2 4 7 10 10 Avg Prop Armor Cover (%) 33 | 41 36 29 . . . Naked Turns . | . . . . . . Heaviest Build 10 | . 2 7 7 7 10 Greatest Support 54 | 3 3 8 8 8 54 Greatest Overweight (x) . | . . . . . . Average Overweight (x) . | . . . . . . Largest Inventory Capacity 5 | 5 5 5 5 5 5 Average Capacity 5 | 5 5 5 5 5 5 Most Carried 5 | 4 5 5 5 5 5 Average Carried 4 | 2 4 4 4 5 4 Final Capacity 5 | 5 5 5 5 5 5 Final Carried 5 | 4 5 5 5 5 4 Class Distribution -------------------- 100% | Mutant Dominant Class ---------------- Mutant | -10/Materials Mutant | -10/Mines Mutant | -10/Exiles Mutant | -9/Mines Mutant | -8/Materials Resources | -11 -10 -10 -10 -9 -8 ----------- Run | Yrd Mat Min Exi Min Mat Matter Collected 270 | 147 . 123 . . . Remotely . | . . . . . . Salvage Created 101 | . . 101 . . . Parts 14 | . . 14 . . . Haulers Intercepted . | . . . . . . Recyclers Shooed . | . . . . . . Parts Field Recycled . | . . . . . . Retrieved Matter . | . . . . . . Parts Self-Destructed . | . . . . . . Prevented . | . . . . . . Parts Restored . | . . . . . . Kills | -11 -10 -10 -10 -9 -8 ------- Run | Yrd Mat Min Exi Min Mat Combat Hostiles Destroyed 4 | . . 4 . . . Guns 4 | . . 4 . . . Classes Destroyed 3 | . . 3 . . . Builder 1 | . . 1 . . . Tunneler 1 | . . 1 . . . Swarmer 4 | . . 4 . . . Best Kill Streak 6 | . . 6 . . . Combat Bots Only 3 | . . 3 . . . Max Kills in Single Turn 2 | . . 2 . . . Gunslinging 1 | . . 1 . . . Exploded . | . . . . . . Melee . | . . . . . . Uniques/NPCs Destroyed . | . . . . . . Combat | -11 -10 -10 -10 -9 -8 -------- Run | Yrd Mat Min Exi Min Mat Hostile Shots Fired 78 | . . 13 . . 65 Missed 41 | . . 4 . . 37 Hits 37 | . . 9 . . 28 Projectile 37 | . . 9 . . 28 Critical Strikes 2 | . . . . . 2 Damage Taken 505 | . . 72 . . 433 Core 113 | . . . . . 113 Absorbed by Shields . | . . . . . . Core Remaining (%) 100 | 100 . . . 100 . Volleys Fired 11 | . . 7 . . 4 Largest 2 | . . 2 . . 2 Hottest 80 | . . 80 . . 80 Shots Fired 22 | . . 14 . . 8 Gun 22 | . . 14 . . 8 Cannon . | . . . . . . Launcher . | . . . . . . Special . | . . . . . . Kinetic . | . . . . . . Thermal 22 | . . 14 . . 8 Explosive . | . . . . . . Electromagnetic . | . . . . . . Robot Hit Streak 4 | . . 4 . . 3 Robot Miss Streak 2 | . . 2 . . 2 Penetration Max . | . . . . . . Secondary Targets 1 | . . 1 . . . Max Gunslinging Chain 1 | . . 1 . . . Shots Hit Robots 13 | . . 8 . . 5 Core Hits 7 | . . 6 . . 1 Critical Kills . | . . . . . . Critical Parts Destroyed . | . . . . . . Critical Strikes . | . . . . . . Melee Attacks 1 | . . . . . 1 Impact . | . . . . . . Slashing 1 | . . . . . 1 Piercing . | . . . . . . Sneak Attacks . | . . . . . . Combat Hostiles . | . . . . . . Follow-up Attacks . | . . . . . . Damage Inflicted 143 | . . 88 . . 55 Guns 143 | . . 88 . . 55 Cannons . | . . . . . . Explosions . | . . . . . . Melee . | . . . . . . Ramming . | . . . . . . Kinetic . | . . . . . . Thermal 143 | . . 88 . . 55 Explosive . | . . . . . . Electromagnetic . | . . . . . . Impact . | . . . . . . Slashing . | . . . . . . Piercing . | . . . . . . Highest Corruption . | . . . . . . Average Corruption . | . . . . . . Corruption Purged . | . . . . . . Corruption Blocked . | . . . . . . Overload Shots . | . . . . . . Overflow Damage . | . . . . . . Projectiles . | . . . . . . Explosions . | . . . . . . Melee . | . . . . . . Knockbacks . | . . . . . . Impact . | . . . . . . Kinetic . | . . . . . . Secondary . | . . . . . . Self-Inflicted Damage . | . . . . . . Shots . | . . . . . . Rammed . | . . . . . . Targets Rammed . | . . . . . . Kicked . | . . . . . . Crushed . | . . . . . . Highest Temperature 31 | . . 31 . . 7 Average Temperature 13 | . . 13 . . 7 Received Heat Transfer 216 | . . . . . 216 Siege Activations . | . . . . . . Martial Activations . | . . . . . . Shielding Activations . | . . . . . . Robots Disrupted . | . . . . . . Combat Hostiles . | . . . . . . Robots Corrupted . | . . . . . . Combat Hostiles . | . . . . . . Parts Fried . | . . . . . . Impact Corruptions . | . . . . . . Robots Melted . | . . . . . . Combat Hostiles . | . . . . . . Parts Melted . | . . . . . . Heat Transferred 325 | . . 200 . . 125 Parts Sabotaged . | . . . . . . Parts Stolen . | . . . . . . Parts Stripped . | . . . . . . Power Chain Reactions . | . . . . . . Alert | -11 -10 -10 -10 -9 -8 ------- Run | Yrd Mat Min Exi Min Mat Maximum Alert Level . | . . . . . . Low Security (%) 100 | 100 100 100 . 100 100 Level 1 . | . . . . . . Level 2 . | . . . . . . Level 3 . | . . . . . . Level 4 . | . . . . . . Level 5 . | . . . . . . High Security . | . . . . . . Max Security . | . . . . . . Peak Influence 90 | . 16 90 . . 15 Initial 4 | . . 4 . . . Average 15 | . 8 33 . . 3 Influence Increases 193 | . 28 130 . . 35 Destroy 0b10 Robot/C 80 | . . 80 . . . Destroy 0b10 Robot/NC 10 | . . 10 . . . Destroy Leader 10 | . . 10 . . . Successful Hack 33 | . 28 . . . 5 Lose Combat Pursuer 60 | . . 30 . . 30 Influence Decreases 193 | . 16 62 80 . 35 Entered New Map 88 | . . 8 80 . . Time Decay 95 | . 16 44 . . 35 Lost Part 10 | . . 10 . . . Squads Dispatched 2 | . . . . . 2 Investigation . | . . . . . . Extermination . | . . . . . . Reinforcement 2 | . . . . . 2 Assault . | . . . . . . Garrison . | . . . . . . Intercept . | . . . . . . Searches Triggered . | . . . . . . Construction Impeded . | . . . . . . Haulers Reinforced . | . . . . . . Active Scanning Responses . | . . . . . . Cargo Convoy Interrupts . | . . . . . . Stealth | -11 -10 -10 -10 -9 -8 --------- Run | Yrd Mat Min Exi Min Mat Distress Signals 2 | . 1 . . . 1 Communications Jammed . | . . . . . . Distress Signals . | . . . . . . Times Spotted 20 | . 2 6 . . 12 Peak Tracking Total 9 | . 1 3 . . 9 Tactical Retreats 3 | . . 1 . . 2 Traps | -11 -10 -10 -10 -9 -8 ------- Run | Yrd Mat Min Exi Min Mat Traps Triggered . | . . . . . . Indirectly . | . . . . . . Trap Hack Attempts . | . . . . . . Triggered . | . . . . . . Disarmed . | . . . . . . Reprogrammed . | . . . . . . Reused . | . . . . . . Traps Extracted . | . . . . . . Installed . | . . . . . . Triggered . | . . . . . . Machines | -11 -10 -10 -10 -9 -8 ---------- Run | Yrd Mat Min Exi Min Mat Machines Disabled . | . . . . . . Max in Single Turn . | . . . . . . Machines Repaired . | . . . . . . Machines Dismantled . | . . . . . . Machines Sabotaged . | . . . . . . Overloaded Fab Kills . | . . . . . . Hacking | -11 -10 -10 -10 -9 -8 --------- Run | Yrd Mat Min Exi Min Mat Machines Accessed 5 | . 2 . 1 . 2 Terminals 4 | . 2 . . . 2 Fabricators . | . . . . . . Repair Stations . | . . . . . . Recycling Units . | . . . . . . Scanalyzers . | . . . . . . Garrison Access . | . . . . . . Total Hacks 13 | . 7 . 1 . 5 Successful 5 | . 3 . 1 . 1 Failed 8 | . 4 . . . 4 Catastrophic 2 | . 1 . . . 1 Database Lockouts . | . . . . . . Manual 10 | . 4 . 1 . 5 Terminals 12 | . 7 . . . 5 Fabricators . | . . . . . . Repair Stations . | . . . . . . Recycling Units . | . . . . . . Scanalyzers . | . . . . . . Garrison Access . | . . . . . . Terminal Hacks 3 | . 2 . 1 . . Zone Layout 2 | . 2 . . . . Proto ID Catalog 1 | . . . 1 . . Fabricator Hacks . | . . . . . . Repair Station Hacks . | . . . . . . Recycling Unit Hacks . | . . . . . . Scanalyzer . | . . . . . . Garrison Access Hacks . | . . . . . . Unauthorized Hacks 2 | . 1 . . . 1 Terminals 2 | . 1 . . . 1 Assimilate 1 | . 1 . . . . Botnet 1 | . . . . . 1 Fabricators . | . . . . . . Repair Stations . | . . . . . . Recycling Units . | . . . . . . Scanalyzers . | . . . . . . Garrison Access . | . . . . . . Data Cores Recovered . | . . . . . . Used . | . . . . . . Hacking Detections 4 | . 2 . . . 2 Full Trace Events . | . . . . . . Feedback Events . | . . . . . . Feedback Blocked . | . . . . . . Robot Schematics Acquired . | . . . . . . Robots Built . | . . . . . . Authchips . | . . . . . . Time . | . . . . . . Total Robot Build Rating . | . . . . . . Part Schematics Acquired . | . . . . . . Parts Built . | . . . . . . Authchips . | . . . . . . Time . | . . . . . . Total Part Build Rating . | . . . . . . Part Studies Acquired . | . . . . . . Parts Repaired . | . . . . . . Time . | . . . . . . Parts Recycled . | . . . . . . Recycled Matter . | . . . . . . Retrieved Matter . | . . . . . . Retrieved Components . | . . . . . . Parts Scanalyzed . | . . . . . . Part Schematics Acquired . | . . . . . . Parts Damaged . | . . . . . . Bothacking | -11 -10 -10 -10 -9 -8 ------------ Run | Yrd Mat Min Exi Min Mat Used RIF Installer . | . . . . . . Robots Hacked . | . . . . . . Non-combat . | . . . . . . Combat . | . . . . . . Robot Hacks Applied . | . . . . . . Relay Couplers Released . | . . . . . . Fabnet Peak Effective % . | . . . . . . Robots Rewired . | . . . . . . Allies Hacked . | . . . . . . Hacks Repelled . | . . . . . . Allies | -11 -10 -10 -10 -9 -8 -------- Run | Yrd Mat Min Exi Min Mat Total Allies 1 | . 1 . . . . Largest Group 1 | . 1 1 . . . Highest-Rated Group 10 | . 10 10 . . . Highest-Rated Ally 10 | . 10 10 . . . Total Orders . | . . . . . . Ally Attacks . | . . . . . . Total Damage . | . . . . . . Kills . | . . . . . . Allies Corrupted . | . . . . . . Allies Melted . | . . . . . . Intel | -11 -10 -10 -10 -9 -8 ------- Run | Yrd Mat Min Exi Min Mat Active Infowar (turns) 120 | . . . . . 120 Optics 120 | . . . . . 120 Robot Analysis Total . | . . . . . . Derelict Logs Recovered . | . . . . . . Drone Launches . | . . . . . . Drone Recoveries . | . . . . . . Exploration | -11 -10 -10 -10 -9 -8 ------------- Run | Yrd Mat Min Exi Min Mat Turns Passed 408 | 22 53 122 79 9 123 Spaces Moved 790 | 28 77 211 204 23 247 Core 207 | 28 77 102 . . . Treads . | . . . . . . Legs . | . . . . . . Wheels . | . . . . . . Hover . | . . . . . . Flight 583 | . . 109 204 23 247 Fastest Speed 37 | 50 50 37 37 37 37 Average Speed 41 | 50 50 43 37 37 39 Slowest Speed 50 | 50 50 50 37 37 42 Overloaded Moves . | . . . . . . Propulsion Burnouts . | . . . . . . Robots Hopped 10 | . . . . . 10 Potential Cave-ins . | . . . . . . Cave-ins Triggered . | . . . . . . Exploration Rate (%) 25 | 3 19 42 59 8 22 Regions Visited 5 Branch Regions 3 Pre-discovered Areas 1 | . . 1 . . . Known Exits Taken . | . . . . . . Unknown Exits Taken 5 | 1 1 1 1 1 . Scrap Searched 1 | . . 1 . . . Spaces Dug . | . . . . . . Terrain Destroyed . | . . . . . . Melee . | . . . . . . Projectile . | . . . . . . AOE . | . . . . . . Terrain Rammed . | . . . . . . Walls Destroyed . | . . . . . . Machines Disabled . | . . . . . . Actions | -11 -10 -10 -10 -9 -8 --------- Run | Yrd Mat Min Exi Min Mat Total 833 | 35 90 226 208 22 252 Wait 9 | . 9 . . . . Move 766 | 27 76 210 203 22 228 Hop 9 | . . . . . 9 Pick Up 15 | 6 3 2 1 . 3 Fast Attach 5 | . . 3 . . 2 Attach 8 | 2 2 2 . . 2 Detach . | . . . . . . Swap . | . . . . . . Drop 9 | . . 2 4 . 3 Fire 11 | . . 7 . . 4 Melee 1 | . . . . . 1 Ram . | . . . . . . Kick . | . . . . . . Crush . | . . . . . . Escape Stasis . | . . . . . . Rewire . | . . . . . . Trap . | . . . . . . Miscellaneous . | . . . . . . Route ------- -11/Scrapyard -10/Materials -10/Mines (discovered 2 exits: [*Mat] / *Exi) -10/Exiles -9/Mines -8/Materials History --------- Turn | Location | Event 9 | -11/Scrapyard | Discovered new exit (range 15) 23 | -11/Scrapyard | Entered Materials 67 | -10/Materials | Discovered new exit (range 16) 76 | -10/Materials | Entered Mines 76 | -10/Mines | Accompanied by 1 ally 117 | -10/Mines | Learned location of Storage (-9) 163 | -10/Mines | Discovered new exit (range 8) 166 | -10/Mines | Assembled infested the area 197 | -10/Mines | Discovered new exit (range 5) 198 | -10/Mines | Entered Exiles 207 | -10/Exiles | Met 8R-AWN 214 | -10/Exiles | Met EX-HEX 224 | -10/Exiles | Met EX-BIN 228 | -10/Exiles | Aligned with FarCom system 229 | -10/Exiles | Given EX-Vault access code 237 | -10/Exiles | Opened EX-Vault 242 | -10/Exiles | Found Flying Fortress v7 250 | -10/Exiles | Warned to stay clear of 0b10 Research branches 260 | -10/Exiles | Met EX-DEC 273 | -10/Exiles | Discovered new exit (range 10) 277 | -10/Exiles | Left Exiles lab with Flying Fortress v7 277 | -10/Exiles | Entered Mines 282 | -9/Mines | Discovered new exit (range 9) 286 | -9/Mines | Entered Materials 286 | -8/Materials | Evolved 4 slots: Propulsion x3, Utility x1 310 | -8/Materials | Build established: Mutant 409 | -8/Materials | Self-destructed Last Messages --------------- 00343_ Connecting with Terminal... >>Trojan(Botnet) Trojan loaded successfully. Testing... Terminal linked with 0 systems. Awaiting botnet instructions. 00346_ Dropped Sml. Laser. 00347_ Acquired Greatsword. 00348_ Dropped Flight Unit. 00350_ Acquired Flight Unit. 00351_ Acquired Greatsword. 00363_ T-07 Excavator is excavating. 00363_ O-16 Technician: "IFF HANDSHAKE FAILED. SECURING TERMINAL." 00367_ T-07 Excavator is excavating. 00374_ ALERT: Hostiles spotted, dispatching reinforcements to Terminal M002. 00382_ K-01 Serf collects debris. 00383_ Critical hit (Burn: +37). 00389_ Acquired Hacking Suite. Map ----- +----------------------------------------------------+ | ????????????# # """ #?????????????? | | ????????????# ! + #?????????????? | | ????????????# ########### #?????????????? | | ?############ #?????????# """ #?????????????? | | ?# [ #?????????# """ #?????????????? | | ?#//[ #?????????# """ #?????????????? | | ?#!! """ #?????????# #?????????????? | | ?#!! ^ """ #?????"???#### ####?????????????? | | ?#[[ """ #????? ???????##????????????????? | | ?#[[ """ #??###+###??????????????????????? | | ?##### """ #### #??????????????????????? | | ?????# %! #??????????????????????? | | ?????# * #??????????????????????? | | ?????##T##### #??????????????????????? | | ????################ #??????????????????????? | | ????# #?## ##??????????????????????? | | ????# #??# #???????????????????????? | | ????? """ """ #??# #???????????????????????? | | ??????? """ """ ????# #???????????????????????? | | ?????????"" ""??????# #???????????????????????? | | ?######?###+###?????# #???????????????????????? | | # # ####### #?######????????????????? | | # """"" # t #?! #????????????????? | | # """"" + #!u #????????????????? | | # """"" # # "" #????????????????? | | ? """"" # ####### @ Y" #????????????????? | | ? """""?# ####?????# # "" #????????????????? | | ? """""?# #????????# # ! #????????????????? | | ??""""??# #???????## ########????????????????? | | ?? ??# ######### #??????????????????????? | | ??? ???# ## #??????????????????????? | | ?? ???# w## " #??????????????????????? | | ?###????# Y## #??????????????????????? | | ????????# ######### #??????????????????????? | | ????????# #???????###########??????????????????? | | ????????# #?????????? #??????????????????? | | ????????# #????????? #??????????????????? | | ????????# #????????? #??????????????????? | | ????????# ######??? = #??????????????????? | | ????????# #### #??????????????????? | | ????????# + """ """????????????????????? | | ????????###### #### """ """????????????????????? | | ?????????????# #??? """ """????????????????????? | | ????????????## ##???###+###????????????????????? | | # """ ###### ##### #?????????????????????? | | # """ + #?????????????????????? | | # """ # T #?????????????????????? | | ???????###### ##### #?????????????????????? | | ????????????######?????? ##?????????????????????? | | ????????????????????????????????????????????????? | +----------------------------------------------------+ Best States ------------- Heat Dissipation 53 Energy Generation 10 Energy Capacity 125 Matter Stores 300 Matter Capacity 300 Sight Range 20 Terrain Scan Density 10 Evasion (%) 62 Offensive Hacking 10 Item Schematics ----------------- None Robot Schematics ------------------ None Fabricated ------------ Nothing Repaired ---------- Nothing Studied --------- None Alien Tech Used ----------------- None Achievements -------------- None Challenges ------------ None Game ------ Seed CorruptionDirtyLattice Manual? 0 Play Time 00:08:57 Cumulative 482.4 hours Start 2025.11.08 @ 15:29:42 End 2025.11.08 @ 15:36:28 Sessions 1 Manual Loads 0 Difficulty Rogue Special Mode None Game No. 628 Rogue 628 Adventurer 0 Explorer 0 Win Type - Total 15 Types 7/0/2/2/1/0/2/1/0/0 Lore% 90 Gallery% 85 Achievement% 64 Wizard Run 0 Options --------- Layout 2 ASCII 0 Keyboard 0 Movement Mouse Keybinds 0 Fullscreen 1 Font 24/Smallcaps Map View 50x49 Zoom Use 0% Tactical HUD 1 Map Filters NONE Filters NONE Steam 1 RUN: 0f6caa64-a195-4041-ba28-d58ed1b34e3f